bitfinex/quotes_SOLUSD_20220128
["timestamp","ask_amount","ask_price","bid_price","bid_amount"]
[1643328539837,6.0,90.645,90.531,112.1]
[1643328540140,6.0,90.647,90.531,112.1]
[1643328540438,6.0,90.647,90.532,16.92258088]
[1643328540739,6.0,90.665,90.55,16.5598]
[1643328540937,6.0,90.665,90.561,46.68748433]
[1643328541138,0.25,90.664,90.561,46.68748433]
[1643328541339,0.25,90.665,90.561,46.68748433]
[1643328541842,16.5663,90.66,90.56,13.43]
[1643328542042,6.0,90.65,90.53,16.67258088]
[1643328542241,6.0,90.65,90.52,13.43]
[1643328542444,0.25,90.649,90.513,112.1]
[1643328542841,0.25,90.649,90.519,34.93243991]
[1643328543042,16.5695,90.64,90.53,13.43]
[1643328543246,0.25,90.649,90.53,13.43]
[1643328543446,6.0,90.63,90.531,16.86006977]
[1643328543642,6.0,90.63,90.532,112.1]
[1643328543842,6.0,90.63,90.533,40.35886127]
[1643328544042,0.25,90.639,90.54,16.5613]
[1643328544243,0.25,90.639,90.55,13.43]
[1643328544446,0.25,90.639,90.551,39.47522003]
[1643328544645,0.25,90.659,90.551,39.47522003]
[1643328545042,0.25,90.659,90.534,17.9434031]
[1643328545446,0.25,90.659,90.51,13.43]
[1643328545850,0.25,90.663,90.512,112.1]
[1643328546049,16.5682,90.65,90.513,39.87675845]
[1643328546247,16.5682,90.65,90.513,56.57003378]
[1643328546448,6.0,90.64,90.514,128.54327533]
[1643328546949,0.25,90.639,90.515,16.69327533]
[1643328547146,6.25,90.639,90.515,16.69327533]
[1643328547348,6.25,90.639,90.521,112.1]
[1643328547550,6.0,90.63,90.521,112.1]
[1643328547750,6.0,90.63,90.522,16.69327533]
[1643328547951,6.25,90.629,90.522,16.69327533]
[1643328548150,6.25,90.629,90.513,39.87675845]
[1643328548151,6.0,90.619,90.514,112.1]
[1643328548359,0.25,90.618,90.514,112.1]
[1643328548551,0.25,90.618,90.48,13.43]
[1643328548751,0.25,90.618,90.45,55.2453]
[1643328548752,0.25,90.618,90.46,13.43]
[1643328548953,0.31991671,90.612,90.451,16.44327533]
[1643328549153,0.31991671,90.612,90.452,112.1]
[1643328549352,6.0,90.61,90.452,112.1]
[1643328549558,16.5788,90.59,90.453,40.49695641]
[1643328549854,112.35,90.589,90.453,40.49695641]
[1643328550054,6.0,90.579,90.453,40.49695641]
[1643328550254,0.25,90.578,90.453,40.49695641]
[1643328550655,112.1,90.569,90.453,40.49695641]
[1643328550858,16.5845,90.56,90.453,40.49695641]
[1643328551064,6.0,90.55,90.453,40.49695641]
[1643328551264,0.25,90.549,90.454,112.1]
[1643328551462,6.0,90.548,90.454,112.1]
[1643328551662,0.25,90.549,90.454,112.1]
[1643328551861,0.25,90.549,90.46,16.5763]
[1643328552062,0.25,90.549,90.453,40.49695641]
[1643328552283,0.25,90.549,90.429,16.14242254]
[1643328552487,0.25,90.578,90.432,0.25]
[1643328552685,6.0,90.57,90.432,0.25]
[1643328552885,0.25,90.569,90.432,0.25]
[1643328553089,6.25,90.569,90.432,0.25]
[1643328553495,11.5864,90.55,90.426,37.01769146]
[1643328553887,6.0,90.54,90.427,128.24242254]
[1643328554186,6.0,90.54,90.428,16.14242254]
[1643328554386,0.25,90.539,90.428,32.83569787]
[1643328554786,0.25,90.539,90.428,0.25]
[1643328555386,0.25,90.539,90.428,16.44327533]
[1643328555586,6.0,90.539,90.428,16.44327533]
[1643328555787,6.0,90.539,90.426,36.76769146]
[1643328555989,16.5884,90.53,90.426,36.76769146]
[1643328556386,6.0,90.52,90.426,36.76769146]
[1643328556790,0.25,90.519,90.426,36.76769146]
[1643328556987,6.0,90.52,90.426,36.76769146]
[1643328557388,6.0,90.55,90.427,16.44327533]
[1643328557590,0.25,90.519,90.427,16.44327533]
[1643328557793,6.0,90.55,90.428,0.25]
[1643328557990,6.0,90.55,90.43,16.5822]
[1643328558191,6.0,90.55,90.431,112.1]
[1643328558392,6.0,90.55,90.431,122.65922313]
[1643328558594,3.06067639,90.627,90.432,16.44327533]
[1643328558890,76.2496,90.626,90.433,112.35]
[1643328559090,76.2496,90.626,90.443,43.01195264]
[1643328559290,69.6328,90.623,90.45,13.43]
[1643328559690,69.6328,90.623,90.451,0.25]
[1643328559891,69.6328,90.623,90.451,66.939221]
[1643328560094,6.0,90.613,90.452,32.58569787]
[1643328560291,6.0,90.613,90.46,16.5769]
[1643328560495,69.6328,90.623,90.47,13.43]
[1643328560496,24.408,90.623,90.47,13.43]
[1643328560694,3.06067639,90.658,90.471,0.26]
[1643328560893,117.9117,90.704,90.471,0.26]
[1643328560894,3.06067639,90.671,90.471,6.51]
[1643328561099,3.06067639,90.682,90.48,6.0]
[1643328561294,11.53376662,90.67,90.491,112.1]
[1643328561495,3.06067639,90.692,90.491,112.1]
[1643328561795,24.7017,90.682,90.502,45.93157908]
[1643328561994,6.0,90.673,90.511,112.1]
[1643328562194,6.0,90.672,90.54,16.5633]
[1643328562394,6.0,90.672,90.542,112.1]
[1643328562595,112.1,90.662,90.542,112.1]
[1643328562792,0.25,90.661,90.543,0.25]
[1643328562993,6.0,90.652,90.543,0.25]
[1643328563395,0.25,90.651,90.55,16.5607]
[1643328563797,0.25,90.651,90.551,0.25]
[1643328564193,0.25,90.651,90.541,40.40651907]
[1643328564194,16.5677,90.65,90.541,40.40651907]
[1643328564395,0.25,90.649,90.49,55.2244]
[1643328564609,6.0,90.64,90.49,68.6544]
[1643328564796,0.25,90.639,90.49,55.2244]
[1643328564993,6.25,90.639,90.49,55.2244]
[1643328565394,6.25,90.639,90.491,36.33044403]
[1643328565593,16.5714,90.63,90.501,112.1]
[1643328565794,0.25,90.629,90.502,0.25]
[1643328566092,6.0,90.62,90.502,0.25]
[1643328566294,0.25,90.619,90.502,0.25]
[1643328568598,0.25,90.619,90.512,112.1]
[1643328568799,0.25,90.619,90.513,0.25]
[1643328569201,6.0,90.62,90.513,0.25]
[1643328569403,6.0,90.62,90.521,112.1]
[1643328569603,6.0,90.64,90.55,16.559]
[1643328569803,6.0,90.64,90.551,37.30001367]
[1643328570003,6.0,90.649,90.522,16.44327533]
[1643328570206,6.0,90.649,90.52,13.43]
[1643328570403,6.0,90.649,90.521,0.25]
[1643328570603,0.25,90.648,90.512,23.3745]
[1643328570804,0.25,90.648,90.513,0.25]
[1643328571003,0.25,90.648,90.513,43.67091434]
[1643328571203,112.15,90.648,90.513,43.67091434]
[1643328571406,112.15,90.648,90.514,112.1]
[1643328571608,6.0,90.638,90.514,112.1]
[1643328571802,0.25,90.637,90.515,0.25]
[1643328572003,6.0,90.63,90.515,0.25]
[1643328572305,0.25,90.629,90.521,112.1]
[1643328572707,0.25,90.629,90.522,0.25]
[1643328575108,0.25,90.629,90.521,0.25]
[1643328575509,0.25,90.629,90.52,16.5663]
[1643328575711,0.25,90.629,90.521,112.1]
[1643328577010,0.25,90.629,90.522,0.25]
[1643328577814,0.25,90.629,90.514,0.25]
[1643328578617,0.25,90.629,90.514,112.35]
[1643328578817,11.78683996,90.629,90.514,112.35]
[1643328579016,6.0,90.619,90.514,112.35]
[1643328579417,0.25,90.618,90.514,112.35]
[1643328579619,6.25,90.618,90.514,112.35]
[1643328580118,112.1,90.617,90.513,43.42091434]
[1643328580319,0.25,90.616,90.514,0.25]
[1643328580517,6.0,90.607,90.513,43.42091434]
[1643328580918,0.25,90.606,90.513,43.42091434]
[1643328581119,112.35,90.606,90.513,43.42091434]
[1643328581518,6.0,90.596,90.513,43.42091434]
[1643328581920,0.25,90.595,90.513,43.42091434]
[1643328582419,6.0,90.596,90.513,43.42091434]
[1643328582619,6.0,90.61,90.513,43.42091434]
[1643328583021,6.0,90.61,90.477,44.2174123]
[1643328583224,13.43,90.6,90.453,23.7068]
[1643328583423,13.43,90.6,90.454,0.25]
[1643328583624,6.0,90.59,90.443,17.39269162]
[1643328583923,13.43,90.58,90.432,10.38144535]
[1643328584124,6.0,90.57,90.433,37.35923932]
[1643328584326,0.25,90.569,90.433,37.35923932]
[1643328584928,2.95669142,90.568,90.433,149.45923932]
[1643328585129,6.0,90.558,90.433,149.45923932]
[1643328585331,0.25,90.557,90.433,37.35923932]
[1643328585530,30.0165,90.55,90.433,37.35923932]
[1643328585952,6.0,90.54,90.433,37.35923932]
[1643328586355,0.25,90.539,90.433,37.35923932]
[1643328586959,0.25,90.539,90.434,112.1]
[1643328587355,0.25,90.558,90.434,112.1]
[1643328587555,6.0,90.549,90.435,0.25]
[1643328588056,0.25,90.548,90.435,0.25]
[1643328588456,0.25,90.548,90.434,0.25]
[1643328589058,0.25,90.549,90.434,0.25]
[1643328589659,6.0,90.541,90.434,0.25]
[1643328589861,0.25,90.54,90.434,0.25]
[1643328590862,6.0,90.541,90.434,0.25]
[1643328591060,6.0,90.55,90.434,0.25]
[1643328591262,0.25,90.549,90.434,0.25]
[1643328591465,0.25,90.549,90.434,10.63144535]
[1643328591660,0.25,90.549,90.44,16.5813]
[1643328591861,0.25,90.549,90.441,0.25]
[1643328592063,0.25,90.549,90.441,10.63144535]
[1643328592461,13.43,90.56,90.433,37.35923932]
[1643328592863,6.0,90.55,90.433,37.35923932]
[1643328593064,6.0,90.549,90.433,37.35923932]
[1643328593263,6.25,90.549,90.42,16.586]
[1643328593463,6.25,90.549,90.415,17.39269162]
[1643328593464,13.43,90.54,90.415,17.39269162]
[1643328593665,112.1,90.539,90.401,46.7249]
[1643328593866,6.0,90.53,90.401,46.7249]
[1643328594064,6.0,90.529,90.402,17.39269162]
[1643328594264,6.25,90.529,90.403,45.49527318]
[1643328594464,13.43,90.56,90.41,30.0164]
[1643328594673,13.43,90.59,90.415,2.92675611]
[1643328594866,71.1995,90.589,90.431,38.82493074]
[1643328595165,71.1995,90.589,90.44,13.43]
[1643328595365,71.1995,90.589,90.441,0.25]
[1643328595574,71.1995,90.589,90.441,2.08192836]
[1643328595767,71.1995,90.589,90.442,17.39269162]
[1643328595973,71.1995,90.589,90.45,16.5786]
[1643328596169,71.1995,90.589,90.451,112.1]
[1643328596370,71.1995,90.589,90.451,129.74269162]
[1643328596571,71.1995,90.589,90.452,17.39269162]
[1643328596770,6.0,90.579,90.453,0.25]
[1643328596970,6.0,90.579,90.453,124.51732167]
[1643328597199,6.0,90.579,90.454,27.72808493]
[1643328597371,6.0,90.579,90.481,148.13568223]
[1643328597774,6.0,90.579,90.482,17.64269162]
[1643328597973,49.3863,90.619,90.483,112.1]
[1643328598171,13.43,90.64,90.483,131.32461998]
[1643328598372,147.41937639,90.663,90.484,117.87314417]
[1643328598572,2.95669142,90.662,90.49,16.5721]
[1643328598772,2.95669142,90.662,90.501,112.1]
[1643328598973,144.3587,90.663,90.51,13.43]
[1643328599175,144.3587,90.663,90.511,49.35134928]
[1643328599374,144.3587,90.663,90.52,6.0]
[1643328599573,144.3587,90.663,90.54,16.5627]
[1643328599778,144.3587,90.663,90.551,112.1]
[1643328599779,70.9296,90.663,90.551,112.1]
[1643328599977,24.208,90.663,90.551,122.89]
[1643328600175,24.208,90.663,90.552,0.25]
[1643328600375,75.1061,90.683,90.552,2.08192836]
[1643328600777,0.25,90.682,90.553,1.83192836]
[1643328600975,6.0,90.673,90.553,1.83192836]
[1643328601176,6.0,90.673,90.554,0.25]
[1643328601379,6.0,90.673,90.57,16.5545]
[1643328601576,111.9,90.693,90.57,16.5545]
[1643328601577,6.0,90.683,90.571,153.58973634]
[1643328601778,6.0,90.683,90.571,153.83973634]
[1643328601977,6.0,90.683,90.571,155.6716647]
[1643328602280,6.0,90.683,90.572,1.83192836]
[1643328602479,111.9,90.693,90.6,16.5519]
[1643328602678,0.1,90.714,90.6,16.5519]
[1643328602881,3.14516079,90.734,90.601,2.08192836]
[1643328603077,3.14516079,90.734,90.601,18.70185924]
[1643328603277,0.1,90.734,90.61,13.43]
[1643328603485,8.79500682,90.733,90.61,13.43]
[1643328603682,8.79500682,90.733,90.64,16.5454]
[1643328603881,8.79500682,90.733,90.641,37.54286384]
[1643328604282,0.25,90.732,90.641,37.54286384]
[1643328605113,6.0,90.723,90.641,37.54286384]
[1643328605313,0.25,90.722,90.641,37.54286384]
[1643328605908,6.0,90.723,90.641,37.54286384]
[1643328606108,6.0,90.723,90.62,16.5491]
[1643328606309,6.0,90.723,90.613,23.1846]
[1643328606510,2.95669142,90.722,90.613,23.1846]
[1643328606709,6.0,90.723,90.613,23.1846]
[1643328606925,6.0,90.712,90.614,1.83192836]
[1643328607213,0.1,90.722,90.614,1.83192836]
[1643328607412,6.0,90.723,90.613,23.1846]
[1643328607710,6.0,90.725,90.62,16.5488]
[1643328608008,6.0,90.725,90.621,37.56177474]
[1643328608409,0.1,90.734,90.621,39.3937031]
[1643328608610,0.1,90.734,90.65,16.5434]
[1643328609011,0.1,90.734,90.621,37.56177474]
[1643328609212,2.95669142,90.733,90.58,13.43]
[1643328609410,111.9,90.717,90.561,47.9569]
[1643328609614,111.9,90.717,90.542,23.346]
[1643328609615,13.43,90.71,90.542,23.346]
[1643328610017,111.9,90.658,90.54,16.5641]
[1643328610211,6.58450777,90.657,90.511,35.8526595]
[1643328610412,6.0,90.648,90.511,35.8526595]
[1643328610613,13.43,90.64,90.511,35.8526595]
[1643328610913,0.25,90.639,90.511,35.8526595]
[1643328611211,2.4713093,90.609,90.511,35.8526595]
[1643328611414,2.4713093,90.609,90.47,16.5745]
[1643328611613,6.0,90.599,90.47,16.5745]
[1643328611811,0.25,90.598,90.47,16.5745]
[1643328612013,16.579,90.59,90.45,13.43]
[1643328612211,16.579,90.59,90.446,10.33705442]
[1643328612412,112.1,90.578,90.447,43.17487051]
[1643328612616,6.0,90.568,90.447,43.17487051]
[1643328612814,0.25,90.567,90.447,43.17487051]
[1643328613015,6.0,90.56,90.447,43.17487051]
[1643328613216,19.53579142,90.6,90.45,16.5791]
[1643328613414,22.5042,90.618,90.46,13.43]
[1643328613614,6.0,90.608,90.46,13.43]
[1643328613814,6.0,90.608,90.47,6.0]
[1643328614017,6.0,90.608,90.47,19.43]
[1643328614214,7.85847658,90.607,90.49,16.5718]
[1643328614616,112.1,90.596,90.491,39.45008725]
[1643328615015,6.0,90.586,90.491,39.45008725]
[1643328615617,6.0,90.586,90.455,10.33705442]
[1643328615816,6.0,90.586,90.487,1.82756601]
[1643328616020,13.43,90.65,90.487,1.82756601]
[1643328616217,13.43,90.66,90.488,28.6773459]
[1643328616417,76.7995,90.646,90.49,13.43]
[1643328616621,76.7995,90.646,90.49,16.572]
[1643328616818,76.7995,90.646,90.491,112.35]
[1643328617018,7.2111895,90.645,90.491,159.0985623]
[1643328617218,13.43,90.63,90.492,12.93017599]
[1643328617420,0.25,90.629,90.493,0.25]
[1643328617618,6.0,90.62,90.493,2.07756601]
[1643328617821,0.25,90.619,90.493,11.35260998]
[1643328618018,6.0,90.611,90.494,1.82756601]
[1643328618219,1.84462757,90.61,90.494,1.82756601]
[1643328618420,2.09462757,90.61,90.5,16.57]
[1643328618620,6.0,90.6,90.5,16.57]
[1643328618822,0.25,90.599,90.501,2.07756601]
[1643328619228,0.25,90.599,90.502,1.83075568]
[1643328619625,0.25,90.599,90.503,0.25]
[1643328620031,0.25,90.599,90.504,1.83075568]
[1643328620225,0.25,90.599,90.503,0.25]
[1643328620625,112.35,90.599,90.48,16.5746]
[1643328621026,6.0,90.589,90.48,16.5746]
[1643328621428,0.25,90.588,90.48,16.5746]
[1643328622240,6.0,90.589,90.492,0.25]
[1643328622627,6.0,90.589,90.48,16.5746]
[1643328623228,6.0,90.589,90.418,2.92675611]
[1643328623229,112.1,90.588,90.454,11.02822109]
[1643328623454,115.3802509,90.588,90.45,16.5782]
[1643328623628,6.0,90.578,90.43,55.2618]
[1643328623828,0.25,90.577,90.43,55.2618]
[1643328624028,6.0,90.57,90.431,38.17702305]
[1643328624229,6.0,90.57,90.45,16.579]
[1643328624430,6.0,90.567,90.45,16.579]
[1643328624629,6.0,90.567,90.47,55.2379]
[1643328624828,6.0,90.586,90.471,0.25]
[1643328625030,6.0,90.586,90.451,42.70436477]
[1643328625230,11.54153268,90.582,90.451,42.70436477]
[1643328625429,8.92215973,90.581,90.452,1.83075568]
[1643328625631,6.0,90.571,90.452,1.83075568]
[1643328625831,13.43,90.64,90.46,30.0063]
[1643328626031,36.6932,90.68,90.47,6.0]
[1643328626330,36.6932,90.68,90.48,13.43]
[1643328626529,36.6932,90.68,90.49,6.0]
[1643328626728,8.76440986,90.678,90.5,13.43]
[1643328627129,8.76440986,90.678,90.511,112.1]
[1643328627329,6.0,90.668,90.52,29.9922]
[1643328627529,6.0,90.668,90.521,49.60439394]
[1643328627728,6.0,90.668,90.521,67.17912986]
[1643328627929,6.0,90.667,90.522,123.18924279]
[1643328628129,6.0,90.667,90.522,157.53067601]
[1643328628333,6.0,90.667,90.523,28.66397871]
[1643328628528,6.0,90.668,90.523,28.66397871]
[1643328628729,6.0,90.668,90.524,17.32473592]
[1643328628933,6.0,90.66,90.524,17.32473592]
[1643328629133,6.0,90.66,90.525,0.25]
[1643328629334,3.20669142,90.659,90.521,49.60439394]
[1643328629531,6.0,90.649,90.522,470.3563034]
[1643328629930,6.0,90.64,90.522,470.3563034]
[1643328630131,6.0,90.638,90.522,470.3563034]
[1643328630333,0.25,90.637,90.521,49.60439394]
[1643328630532,6.0,90.629,90.521,49.60439394]
[1643328630960,6.0,90.627,90.521,49.60439394]
[1643328631232,6.0,90.62,90.521,49.60439394]
[1643328631432,6.0,90.62,90.522,0.25]
[1643328631631,0.25,90.619,90.522,0.25]
[1643328631832,0.25,90.628,90.522,0.25]
[1643328632232,0.25,90.628,90.53,16.5647]
[1643328632434,0.25,90.628,90.521,49.60439394]
[1643328632933,0.25,90.639,90.521,49.60439394]
[1643328633233,6.0,90.63,90.522,0.25]
[1643328633435,6.0,90.63,90.521,49.60439394]
[1643328633732,6.0,90.628,90.521,49.60439394]
[1643328633931,6.0,90.628,90.47,13.43]
[1643328634132,6.0,90.619,90.46,13.43]
[1643328634434,13.43,90.61,90.454,11.08924279]
[1643328634633,6.0,90.6,90.454,11.08924279]
[1643328634832,0.25,90.599,90.454,11.08924279]
[1643328635032,0.25,90.599,90.482,36.30827296]
[1643328635232,112.35,90.599,90.482,36.30827296]
[1643328635632,112.1,90.588,90.482,36.30827296]
[1643328635833,0.25,90.587,90.482,36.30827296]
[1643328636034,6.0,90.578,90.482,36.30827296]
[1643328636435,0.25,90.577,90.482,36.30827296]
[1643328636834,0.25,90.577,90.483,0.25]
[1643328637634,0.25,90.577,90.482,36.30827296]
[1643328638238,16.5811,90.57,90.482,36.30827296]
[1643328638640,6.0,90.56,90.482,36.30827296]
[1643328638836,0.25,90.559,90.482,36.30827296]
[1643328639036,6.25,90.559,90.482,36.30827296]
[1643328639636,6.0,90.549,90.482,36.30827296]
[1643328639838,0.25,90.548,90.482,36.30827296]
[1643328641142,0.25,90.559,90.482,36.30827296]
[1643328641340,0.25,90.579,90.482,36.30827296]
[1643328641543,6.0,90.571,90.482,36.30827296]
[1643328641745,6.0,90.571,90.454,11.08924279]
[1643328641944,6.0,90.569,90.455,0.25]
[1643328642341,112.35,90.568,90.455,0.25]
[1643328642541,6.0,90.558,90.455,0.25]
[1643328642942,112.35,90.557,90.455,0.25]
[1643328643142,6.0,90.547,90.436,0.25]
[1643328643342,0.25,90.546,90.436,0.25]
[1643328644343,0.25,90.546,90.44,16.5801]
[1643328644752,0.25,90.546,90.441,0.25]
[1643328644949,0.25,90.546,90.435,42.43619515]
[1643328645649,0.25,90.546,90.441,1.47419632]
[1643328646048,0.25,90.546,90.437,1.47419632]
[1643328646251,0.25,90.546,90.436,0.25]
[1643328646450,112.35,90.546,90.439,1.47419632]
[1643328646749,6.0,90.536,90.436,0.25]
[1643328646948,6.0,90.536,90.437,1.47419632]
[1643328647150,0.25,90.535,90.437,1.47419632]
[1643328647349,0.25,90.535,90.438,0.25]
[1643328648250,6.0,90.537,90.438,0.25]
[1643328648450,6.0,90.537,90.436,0.25]
[1643328648451,0.25,90.536,90.436,0.25]
[1643328650153,112.35,90.536,90.436,0.25]
[1643328650552,6.0,90.526,90.436,0.25]
[1643328650956,0.25,90.525,90.436,0.25]
[1643328651154,6.0,90.526,90.436,0.25]
[1643328651354,0.25,90.625,90.436,0.25]
[1643328651355,99.9933,90.579,90.437,11.08924279]
[1643328651557,99.9933,90.579,90.445,1.47419632]
[1643328651755,16.4513,90.605,90.458,1.47419632]
[1643328651954,16.4513,90.605,90.46,1.47419632]
[1643328652152,16.4513,90.605,90.466,43.29491788]
[1643328652354,16.4513,90.605,90.467,0.25]
[1643328652556,24.0213,90.609,90.467,11.33924279]
[1643328652753,6.0,90.595,90.467,11.33924279]
[1643328652953,0.25,90.608,90.468,11.08924279]
[1643328652954,6.0,90.599,90.468,11.08924279]
[1643328653155,6.0,90.599,90.47,16.5742]
[1643328653354,6.0,90.599,90.476,1.47419632]
[1643328653755,6.0,90.599,90.477,0.25]
[1643328653963,2.95669142,90.598,90.464,1.47419632]
[1643328654158,16.5789,90.59,90.455,1.47419632]
[1643328654356,13.43,90.58,90.455,1.47419632]
[1643328654556,19.43,90.58,90.453,1.47419632]
[1643328654856,3.20669142,90.579,90.443,1.47419632]
[1643328655055,3.20669142,90.579,90.435,112.1]
[1643328655056,3.20669142,90.579,90.441,1.47419632]
[1643328655259,112.1,90.568,90.452,39.38823137]
[1643328655458,16.583,90.56,90.452,39.38823137]
[1643328655660,6.0,90.55,90.452,39.38823137]
[1643328655859,0.25,90.549,90.436,1.47419632]
[1643328656061,0.25,90.549,90.435,1.47419632]
[1643328656262,11.54765589,90.548,90.435,1.47419632]
[1643328656461,11.54765589,90.548,90.434,1.47419632]
[1643328656664,6.0,90.538,90.434,1.47419632]
[1643328656861,0.25,90.537,90.439,1.47419632]
[1643328657268,0.25,90.537,90.44,0.25]
[1643328657462,0.25,90.537,90.437,1.47419632]
[1643328657664,0.25,90.537,90.44,13.40143723]
[1643328657863,0.25,90.537,90.441,0.25]
[1643328658062,6.0,90.54,90.441,0.25]
[1643328658262,0.25,90.539,90.442,13.40143723]
[1643328658663,0.25,90.539,90.443,0.25]
[1643328658863,0.25,90.539,90.435,41.03956243]
[1643328659065,16.5886,90.53,90.426,1.47419632]
[1643328659266,16.5886,90.53,90.424,1.47419632]
[1643328659267,0.31497095,90.508,90.424,1.47419632]
[1643328659664,6.0,90.5,90.424,1.47419632]
[1643328659864,0.25,90.499,90.401,1.47419632]
[1643328660064,0.25,90.499,90.392,1.47419632]
[1643328660368,0.25,90.499,90.393,41.91668992]
[1643328660665,13.43,90.52,90.414,1.47419632]
[1643328660878,1.52934793,90.566,90.434,1.47419632]
[1643328661098,1.52934793,90.574,90.442,1.47419632]
[1643328661294,1.52934793,90.58,90.442,1.47419632]
[1643328661503,1.52934793,90.581,90.453,1.47419632]
[1643328661704,1.52934793,90.582,90.46,16.5752]
[1643328661896,1.52934793,90.578,90.461,0.25]
[1643328662193,6.0,90.505,90.461,0.25]
[1643328662993,6.0,90.505,90.451,1.47419632]
[1643328663194,6.0,90.505,90.451,1.72419632]
[1643328663393,6.0,90.505,90.453,1.47419632]
[1643328663694,6.0,90.505,90.446,1.47419632]
[1643328663895,6.0,90.505,90.441,1.47419632]
[1643328664096,6.0,90.505,90.44,1.47419632]
[1643328664295,6.0,90.505,90.438,1.47419632]
[1643328664694,6.0,90.505,90.437,1.47419632]
[1643328664894,0.25,90.504,90.435,1.47419632]
[1643328665095,0.25,90.504,90.43,1.47419632]
[1643328665296,0.25,90.504,90.431,1.47419632]
[1643328665494,0.25,90.504,90.42,16.5853]
[1643328665495,0.25,90.504,90.432,45.49490111]
[1643328666095,0.25,90.504,90.427,1.47419632]
[1643328666496,0.25,90.504,90.39,13.43]
[1643328666497,0.25,90.504,90.414,1.47419632]
[1643328666795,0.25,90.504,90.416,1.47419632]
[1643328666995,0.25,90.504,90.396,2.96400625]
[1643328666996,0.25,90.504,90.415,1.47419632]
[1643328667199,0.25,90.504,90.418,1.47419632]
[1643328667395,6.0,90.496,90.425,1.47419632]
[1643328667595,0.25,90.504,90.425,1.47419632]
[1643328667796,0.25,90.504,90.426,0.25]
[1643328667995,0.25,90.504,90.425,1.47419632]
[1643328668196,13.43,90.53,90.426,0.25]
[1643328668398,46.9792,90.539,90.426,0.25]
[1643328668699,3.06067639,90.569,90.426,0.25]
[1643328668700,13.43,90.55,90.444,1.47419632]
[1643328668898,13.43,90.55,90.427,17.07125028]
[1643328668899,1.52934793,90.572,90.451,1.47419632]
[1643328669098,8.91140721,90.577,90.461,1.47419632]
[1643328669300,8.91140721,90.577,90.464,1.47419632]
[1643328669703,8.91140721,90.577,90.47,16.5749]
[1643328669898,8.91140721,90.577,90.471,0.25]
[1643328670301,6.0,90.567,90.471,0.25]
[1643328670705,0.25,90.566,90.47,16.5749]
[1643328670902,0.25,90.566,90.462,40.95994108]
[1643328671109,6.0,90.565,90.462,40.95994108]
[1643328671306,0.25,90.564,90.463,0.25]
[1643328671609,6.0,90.562,90.463,0.25]
[1643328671805,9.01440986,90.561,90.462,40.95994108]
[1643328672308,6.0,90.551,90.462,40.95994108]
[1643328672707,0.25,90.55,90.462,40.95994108]
[1643328673209,0.25,90.55,90.463,0.25]
[1643328673409,0.25,90.55,90.462,40.95994108]
[1643328674008,0.25,90.55,90.448,1.47419632]
[1643328674207,13.68,90.55,90.436,1.47419632]
[1643328674406,19.68,90.55,90.432,1.47419632]